lending/lending_fUSD_20251114
["ID","MTS","AMOUNT","RATE_DAILY","PERIOD"]
[393925693,1763097055382,-428.92647309,0.00038356,15]
[393925694,1763097055393,-150.0,0.00038461,2]
[393925695,1763097055403,-1295.81,0.000385,14]
[393925696,1763097055412,-169.37,0.00038566,2]
[393925697,1763097055422,-169.37,0.00038566,2]
[393925698,1763097055433,-152.0,0.00038625,17]
[393925699,1763097055442,-199.0,0.0003863,12]
[393925700,1763097055451,-1305.35,0.000387,14]
[393925701,1763097055460,-1598.0,0.0003873,2]
[393925702,1763097055469,-821.0,0.0003873,2]
[393925703,1763097055478,-814.0,0.0003873,2]
[393925704,1763097055489,-1275.0,0.0003873,2]
[393925705,1763097055499,-6669.0,0.00038731,2]
[393925706,1763097055509,-560.0,0.00038731,2]
[393925707,1763097055518,-1318.0,0.00038804,2]
[393925708,1763097055527,-575.0,0.00038804,2]
[393925709,1763097055536,-608.0,0.00038804,2]
[393925710,1763097055545,-3429.0,0.00038804,2]
[393925711,1763097055555,-2145.0,0.00038815,2]
[393925712,1763097055567,-977.67800419,0.0003899,2]
[393925713,1763097055577,-1996.98,0.00039,2]
[393925714,1763097055586,-2000.0,0.00039,2]
[393925715,1763097055599,-2000.0,0.00039,2]
[393925716,1763097055609,-2000.0,0.00039,2]
[393925717,1763097055619,-2000.0,0.00039,2]
[393925718,1763097055635,-33941.35263097,0.00039,10]
[393925719,1763097055648,-1868.33838091,0.00039,2]
[393925720,1763097055660,-156.37397192,0.00039,3]
[393925721,1763097055671,-150.0,0.00039,5]
[393925722,1763097055682,-2299.99998805,0.00039,14]
[393925723,1763097055693,-2000.0,0.00039,2]
[393925724,1763097055705,-478.56668374,0.00039,10]
[393925725,1763097055716,-1298.43,0.00039014,2]
[393925726,1763097055727,-199.0,0.00039178,13]
[393925727,1763097055740,-152.0,0.00039264,18]
[393925728,1763097055751,-300.0,0.00039389,2]
[393925729,1763097055762,-150.0,0.00039389,2]
[393925730,1763097055774,-150.0,0.00039389,2]
[393925731,1763097055784,-150.0,0.00039389,2]
[393925732,1763097055796,-150.0,0.00039389,2]
[393925733,1763097055807,-150.0,0.00039389,2]
[393925734,1763097055819,-150.0,0.00039389,2]
[393925735,1763097055830,-152.46,0.000394,14]
[393925736,1763097055854,-158.61541657,0.00039451,7]
[393925737,1763097055865,-296093.09395482,0.000395,2]
[393925738,1763097055876,-844.19,0.00039654,2]
[393925739,1763097055886,-2000.0,0.00039699,2]
[393925740,1763097055896,-1000.0,0.00039699,2]
[393925741,1763097055906,-199.0,0.00039726,14]
[393925742,1763097055917,-300.0,0.00039886,2]
[393925743,1763097055927,-152.0,0.00039904,19]
[393925744,1763097055937,-300.0,0.00039909,2]
[393925745,1763097055947,-181.78297004,0.00039925,22]
[393925746,1763097055956,-300.0,0.00039939,2]
[393925747,1763097055966,-300.0,0.00039963,2]
[393925748,1763097055975,-1076.08174,0.0004,2]
[393925749,1763097055985,-3687.0,0.0004,20]
[393925750,1763097055994,-1803.0,0.0004,2]
[393925751,1763097056003,-1803.0,0.0004,2]
[393925752,1763097056013,-1803.0,0.0004,2]
[393925753,1763097056022,-416.24841174,0.0004,7]
[393925754,1763097056032,-966.10316333,0.0004,7]
[393925755,1763097056041,-3312.89112923,0.0004,5]
[393925756,1763097056050,-1000.0,0.0004,20]
[393925757,1763097056059,-2502.0,0.0004,2]
[393925758,1763097056069,-800.90043129,0.0004,7]
[393925759,1763097056078,-385.02098995,0.0004,2]
[393925760,1763097056089,-215.78632452,0.0004,2]
[393925761,1763097056103,-310.49795797,0.0004,2]
[393925762,1763097056112,-150.03174264,0.0004,2]
[393925763,1763097056122,-181.0,0.0004,2]
[393925764,1763097056131,-181.18098274,0.0004,2]
[393925765,1763097056141,-181.0,0.0004,2]
[393925766,1763097056150,-181.66682227,0.0004,2]
[393925767,1763097056159,-315.0,0.0004,10]
[393925768,1763097056168,-188.32,0.0004,14]
[393925769,1763097056178,-300.0,0.00040079,2]
[393925770,1763097056188,-300.0,0.00040098,2]
[393925771,1763097056198,-860.44,0.000401,30]
[393925772,1763097056207,-300.0,0.00040137,2]
[393925773,1763097056216,-300.0,0.00040138,2]
[393925774,1763097056225,-300.0,0.00040142,2]
[393925775,1763097056235,-300.0,0.00040143,2]
[393925776,1763097056244,-300.0,0.00040144,2]
[393925777,1763097056253,-300.0,0.00040155,2]
[393925778,1763097056262,-300.0,0.00040156,2]
[393925779,1763097056272,-694.74,0.0004016,30]
[393925780,1763097056281,-1028.63770258,0.00040162,20]
[393925781,1763097056291,-1030.817069,0.00040162,20]
[393925782,1763097056299,-1068.59137669,0.00040162,20]
[393925783,1763097056308,-1045.38377888,0.00040162,20]
[393925784,1763097056317,-1048.42998386,0.00040162,20]
[393925785,1763097056326,-1056.23499409,0.00040162,20]
[393925786,1763097056335,-1006.36375158,0.00040162,20]
[393925787,1763097056349,-1099.74633587,0.00040162,20]
[393925788,1763097056359,-1118.63494307,0.00040162,20]
[393925789,1763097056368,-1474.28038839,0.00040162,20]
[393925790,1763097056378,-300.0,0.00040193,2]
[393925791,1763097056387,-1005.8282,0.00040199,2]
[393925792,1763097056396,-300.0,0.00040205,2]
[393925793,1763097056406,-300.0,0.00040207,2]
[393925794,1763097056415,-302.48,0.00040211,2]
[393925795,1763097056426,-300.0,0.00040222,2]
[393925796,1763097056437,-516.14213561,0.00040232,12]
[393925797,1763097056447,-516.14213547,0.00040232,12]
[393925798,1763097056457,-516.14213547,0.00040232,12]
[393925799,1763097056467,-516.14213547,0.00040232,12]
[393925800,1763097056477,-516.14213547,0.00040232,12]
[393925801,1763097056488,-516.14213547,0.00040232,12]
[393925802,1763097056498,-516.14213547,0.00040232,12]
[393925803,1763097056508,-516.14213547,0.00040232,12]
[393925804,1763097056518,-516.14213547,0.00040232,12]
[393925805,1763097056527,-516.14213547,0.00040232,12]
[393925806,1763097056537,-516.14213547,0.00040232,12]
[393925807,1763097056546,-516.14213547,0.00040232,12]
[393925808,1763097056555,-516.14213547,0.00040232,12]
[393925809,1763097056565,-516.14213547,0.00040232,12]
[393925810,1763097056574,-300.0,0.00040245,2]
[393925811,1763097056584,-300.0,0.00040262,2]
[393925812,1763097056598,-300.0,0.00040268,2]
[393925813,1763097056608,-1353.69104679,0.00040271,20]
[393925814,1763097056617,-199.0,0.00040273,15]
[393925815,1763097056627,-1208.02,0.00040274,2]
[393925816,1763097056636,-851.03,0.00040274,2]
[393925817,1763097056645,-1208.02,0.00040274,2]
[393925818,1763097056655,-177.26,0.00040274,2]
[393925819,1763097056665,-177.26,0.00040274,2]
[393925820,1763097056674,-177.26,0.00040274,2]
[393925821,1763097056684,-300.0,0.0004028,2]
[393925822,1763097056693,-300.0,0.00040321,2]
[393925823,1763097056703,-300.0,0.00040321,2]
[393925824,1763097056713,-300.0,0.00040332,2]
[393925825,1763097056723,-300.0,0.00040336,2]
[393925826,1763097056733,-300.0,0.00040352,2]
[393925827,1763097056742,-300.0,0.00040353,2]
[393925828,1763097056752,-15826.09373472,0.00040379,2]
[393925829,1763097056761,-300.0,0.00040379,2]
[393925830,1763097056771,-300.0,0.00040396,2]
[393925831,1763097056781,-300.0,0.00040404,2]
[393925832,1763097056791,-300.0,0.00040441,2]
[393925833,1763097056800,-300.0,0.00040448,2]
[393925834,1763097056810,-300.0,0.00040449,2]
[393925835,1763097056819,-300.0,0.00040456,2]
[393925836,1763097056828,-300.0,0.00040459,2]
[393925837,1763097056839,-5019.72765839,0.00040469,2]
[393925838,1763097056854,-1297.04264906,0.00040473,14]
[393925839,1763097056864,-300.0,0.00040474,2]
[393925840,1763097056873,-300.0,0.00040475,2]
[393925841,1763097056882,-300.0,0.00040488,2]
[393925842,1763097056894,-300.0,0.00040499,2]
[393925843,1763097056903,-300.0,0.00040507,2]
[393925844,1763097056912,-300.0,0.00040512,2]
[393925845,1763097056922,-300.0,0.00040522,2]
[393925846,1763097056933,-300.0,0.00040529,2]
[393925847,1763097056943,-300.0,0.00040538,2]
[393925848,1763097056952,-152.0,0.00040543,20]
[393925849,1763097056961,-300.0,0.00040569,2]
[393925850,1763097056971,-300.0,0.00040579,2]
[393925851,1763097056982,-300.0,0.00040585,2]
[393925852,1763097056993,-300.0,0.00040589,2]
[393925853,1763097057002,-300.0,0.00040592,2]
[393925854,1763097057011,-300.0,0.00040607,2]
[393925855,1763097057020,-300.0,0.00040644,2]
[393925856,1763097057030,-300.0,0.00040656,2]
[393925857,1763097057039,-300.0,0.0004067,2]
[393925858,1763097057048,-150.0,0.00040691,2]
[393925859,1763097057059,-480.0,0.000407,4]
[393925860,1763097057069,-5866.1314209,0.000407,5]
[393925861,1763097057080,-300.0,0.00040717,2]
[393925862,1763097057090,-300.0,0.00040726,2]
[393925863,1763097057100,-300.0,0.0004073,2]
[393925864,1763097057109,-681.0,0.00040767,6]
[393925865,1763097057119,-300.0,0.00040769,2]
[393925866,1763097057129,-300.0,0.00040777,2]
[393925867,1763097057139,-300.0,0.00040796,2]
[393925868,1763097057149,-756.0,0.000408,14]
[393925869,1763097057159,-300.0,0.0004081,2]
[393925870,1763097057169,-199.0,0.00040821,16]
[393925871,1763097057179,-300.0,0.00040823,2]
[393925872,1763097057316,-300.0,0.00040827,2]
[393925873,1763097057327,-300.0,0.00040837,2]
[393925874,1763097057338,-203.3682583,0.00040849,2]
[393925875,1763097057348,-300.0,0.00040878,2]
[393925876,1763097057357,-300.0,0.00040884,2]
[393925877,1763097057365,-300.0,0.00040895,2]
[393925878,1763097057375,-300.0,0.00040904,2]
[393925879,1763097057384,-300.0,0.00040912,2]
[393925880,1763097057394,-300.0,0.00040914,2]
[393925881,1763097057403,-300.0,0.00040914,2]
[393925882,1763097057412,-300.0,0.00040929,2]
[393925883,1763097057421,-300.0,0.00040931,2]
[393925884,1763097057430,-300.0,0.00040936,2]
[393925885,1763097057439,-300.0,0.0004094,2]
[393925886,1763097057452,-300.0,0.00040951,2]
[393925887,1763097057462,-500.0,0.0004097,3]
[393925888,1763097057471,-1000.0,0.0004097,3]
[393925889,1763097057481,-1000.0,0.0004097,3]
[393925890,1763097057491,-605.68243894,0.0004097,3]
[393925891,1763097057501,-1489.03486589,0.0004097,3]
[393925892,1763097057510,-300.0,0.00040974,2]
[393925893,1763097057519,-300.0,0.00040983,2]
[393925894,1763097057529,-300.0,0.00040996,2]
[393925895,1763097057539,-516.14213547,0.00040998,13]
[393925896,1763097057549,-150.0,0.00041,20]
[393925897,1763097057558,-300.0,0.00041018,2]
[393925898,1763097057568,-500.0,0.00041024,15]
[393925899,1763097057577,-500.0,0.00041024,15]
[393925900,1763097057587,-500.0,0.00041024,15]
[393925901,1763097057599,-500.0,0.00041024,15]
[393925902,1763097057608,-500.0,0.00041024,15]
[393925903,1763097057618,-500.0,0.00041024,15]
[393925904,1763097057627,-500.0,0.00041024,15]
[393925905,1763097057637,-500.0,0.00041024,15]
[393925906,1763097057647,-500.0,0.00041025,15]
[393925907,1763097057657,-500.0,0.00041025,15]
[393925908,1763097057667,-500.0,0.00041025,15]
[393925909,1763097057677,-500.0,0.00041025,15]
[393925910,1763097057687,-500.0,0.00041025,15]
[393925911,1763097057696,-500.0,0.00041025,15]
[393925912,1763097057706,-500.0,0.00041025,15]
[393925913,1763097057715,-500.0,0.00041025,15]
[393925914,1763097057724,-300.0,0.00041029,2]
[393925915,1763097057734,-5000.0,0.0004103,7]
[393925916,1763097057743,-5000.0,0.0004103,3]
[393925917,1763097057753,-5000.0,0.0004103,6]
[393925918,1763097057762,-300.0,0.00041038,2]
[393925919,1763097057771,-300.0,0.00041059,2]
[393925920,1763097057781,-500.0,0.0004107,3]
[393925921,1763097057792,-1000.0,0.0004107,3]
[393925922,1763097057802,-500.0,0.0004107,3]
[393925923,1763097057811,-1000.0,0.0004107,3]
[393925924,1763097057821,-300.0,0.00041088,2]
[393925925,1763097057831,-500.0,0.00041096,8]
[393925926,1763097057848,-200.0,0.00041096,7]
[393925927,1763097057858,-151.069191,0.00041096,5]
[393925928,1763097057867,-200.0,0.00041096,7]
[393925929,1763097057876,-1000.0,0.00041097,3]
[393925930,1763097057887,-1000.0,0.00041097,3]
[393925931,1763097057896,-156.770569,0.00041098,21]
[393925932,1763097057905,-151.0,0.00041098,15]
[393925933,1763097057915,-151.0,0.00041098,15]
[393925934,1763097057926,-151.0,0.00041098,15]
[393925935,1763097057935,-151.0,0.00041098,15]
[393925936,1763097057944,-151.0,0.00041098,15]
[393925937,1763097057953,-151.0,0.00041098,15]
[393925938,1763097057962,-151.0,0.00041098,15]
[393925939,1763097057971,-151.0,0.00041098,15]
[393925940,1763097057980,-151.0,0.00041098,15]
[393925941,1763097057989,-161.812256,0.00041098,15]
[393925942,1763097057998,-209.09946,0.00041098,2]
[393925943,1763097058008,-209.09946,0.00041098,2]
[393925944,1763097058017,-209.09946,0.00041098,2]
[393925945,1763097058027,-209.09946,0.00041098,2]
[393925946,1763097058036,-209.09946,0.00041098,2]
[393925947,1763097058045,-209.09946,0.00041098,2]
[393925948,1763097058055,-209.09946,0.00041098,2]
[393925949,1763097058065,-209.09946,0.00041098,2]
[393925950,1763097058074,-209.09946,0.00041098,2]
[393925951,1763097058084,-209.09946,0.00041098,2]
[393925952,1763097058095,-209.09946,0.00041098,2]
[393925953,1763097058105,-209.09946,0.00041098,2]
[393925954,1763097058115,-209.09946,0.00041098,2]
[393925955,1763097058126,-209.09946,0.00041098,2]
[393925956,1763097058135,-209.09946,0.00041098,2]
[393925957,1763097058145,-209.09946,0.00041098,2]
[393925958,1763097058155,-209.09946,0.00041098,2]
[393925959,1763097058165,-209.09946,0.00041098,2]
[393925960,1763097058174,-209.09946,0.00041098,2]
[393925961,1763097058183,-209.099466,0.00041098,2]
[393925962,1763097058193,-152.828744,0.00041098,120]
[393925963,1763097058203,-151.0,0.00041098,120]
[393925964,1763097058213,-151.0,0.00041098,120]
[393925965,1763097058223,-154.964526,0.00041098,120]
[393925966,1763097058233,-151.0,0.00041098,120]
[393925967,1763097058242,-152.446215,0.00041098,120]
[393925968,1763097058252,-1504.51653,0.00041098,28]
[393925969,1763097058262,-1504.51653,0.00041098,28]
[393925970,1763097058271,-1504.51653,0.00041098,28]
[393925971,1763097058281,-1504.51653,0.00041098,28]
[393925972,1763097058291,-1504.51653,0.00041098,28]
[393925973,1763097058301,-1504.51653,0.00041098,28]
[393925974,1763097058311,-1504.51653,0.00041098,28]
[393925975,1763097058320,-1504.51653,0.00041098,28]
[393925976,1763097058330,-1504.51653,0.00041098,28]
[393925977,1763097058341,-1504.51653,0.00041098,28]
[393925978,1763097058350,-1504.51653,0.00041098,28]
[393925979,1763097058359,-1504.51653,0.00041098,28]
[393925980,1763097058369,-1504.51653,0.00041098,28]
[393925981,1763097058378,-1504.51653,0.00041098,28]
[393925982,1763097058388,-1504.51653,0.00041098,28]
[393925983,1763097058397,-1504.51653,0.00041098,28]
[393925984,1763097058407,-1504.51653,0.00041098,28]
[393925985,1763097058416,-1504.51653,0.00041098,28]
[393925986,1763097058427,-1504.51653,0.00041098,28]
[393925987,1763097058436,-1504.516538,0.00041098,28]
[393925988,1763097058446,-151.0,0.00041098,10]
[393925989,1763097058455,-157.132813,0.00041098,10]
[393925990,1763097058464,-4340809.26970662,0.00041098,120]
[393925991,1763097074711,150.755194,0.00041232,120]
[393925992,1763097075031,150.755194,0.00041232,120]
[393925993,1763097075480,150.755194,0.00041232,120]
[393925994,1763097075828,150.755194,0.00041232,120]
[393925995,1763097076152,150.755194,0.00041232,120]
[393925996,1763097082311,150.939546,0.00041232,120]
[393925997,1763097082624,150.939546,0.00041232,120]
[393925998,1763097083007,150.939546,0.00041232,120]
[393925999,1763097083370,150.939546,0.00041232,120]
[393926000,1763097083747,150.939546,0.00041232,120]
[393926001,1763097087334,156.826511,0.00041232,120]
[393926002,1763097087649,156.826511,0.00041232,120]
[393926003,1763097088457,156.826511,0.00041232,120]
[393926004,1763097088798,156.826511,0.00041232,120]
[393926005,1763097089109,156.826511,0.00041232,120]
[393926006,1763097089458,156.826511,0.00041232,120]
[393926007,1763097090121,156.826511,0.00041232,120]
[393926008,1763097090460,156.826511,0.00041232,120]
[393926009,1763097092665,1137.0,0.00041232,120]
[393926010,1763097133384,791.61648626,0.00041232,30]
[393926011,1763097253277,500.0,0.00041232,30]
[393926012,1763097253525,500.0,0.00041232,30]
[393926013,1763097253775,216.38,0.00041232,30]
[393926014,1763097258232,2000.0,0.00041232,30]
[393926015,1763097258304,2000.0,0.00041232,30]
[393926016,1763097258724,1512.1509537,0.00041232,30]
[393926017,1763097277934,2000.0,0.00041232,30]
[393926018,1763097278553,2000.0,0.00041232,30]
[393926019,1763097293521,500.0,0.00041232,30]
[393926020,1763097293798,595.27809259,0.00041232,30]
[393926021,1763097297706,1286.6060349,0.00041232,30]
[393926022,1763097297974,1781.73412115,0.00041232,30]
[393926023,1763097300458,480.0530135,0.0004123,30]
[393926024,1763097300960,351.52,0.0004123,30]
[393926025,1763097303438,500.0,0.0004123,30]
[393926026,1763097305556,510.92902816,0.0004123,30]
[393926027,1763097308400,-449.34981822,0.00016886,2]
[393926028,1763097311441,-284.02738841,0.00016886,2]
[393926029,1763097312685,157.919104,0.0004123,120]
[393926030,1763097314977,153.429594,0.0004123,120]
[393926031,1763097315324,153.429594,0.0004123,120]
[393926032,1763097315638,153.429594,0.0004123,120]
[393926033,1763097315803,-500.0,0.00016886,2]
[393926034,1763097317871,-379.08091829,0.00016886,2]
[393926035,1763097320430,-288.67305142,0.00016886,2]
[393926036,1763097320842,-63265.0,0.00016886,2]
[393926037,1763097325775,154.543714,0.0004123,120]
[393926038,1763097326088,154.543714,0.0004123,120]
[393926039,1763097326555,154.543714,0.0004123,120]
[393926040,1763097331732,500.0,0.0004123,30]
[393926041,1763097331988,500.0,0.0004123,30]
[393926042,1763097332256,500.0,0.0004123,30]
[393926043,1763097332518,500.0,0.0004123,30]
[393926044,1763097332757,600.0,0.0004123,30]
[393926045,1763097361110,427.06,0.0004123,30]
[393926046,1763097361509,500.0,0.0004123,30]
[393926047,1763097361771,500.0,0.0004123,30]
[393926048,1763097362034,500.0,0.0004123,30]
[393926049,1763097362272,500.0,0.0004123,30]
[393926050,1763097384431,500.0,0.0004123,30]
[393926051,1763097384702,500.0,0.0004123,30]
[393926052,1763097384950,500.0,0.0004123,30]
[393926053,1763097385175,500.0,0.0004123,30]
[393926054,1763097387163,151.4060891,0.0004123,30]
[393926055,1763097388761,500.0,0.0004123,30]
[393926056,1763097389358,300.0,0.0004123,30]
[393926057,1763097391477,500.0,0.0004123,30]
[393926058,1763097391736,500.0,0.0004123,30]
[393926059,1763097391989,500.0,0.0004123,30]
[393926060,1763097392230,500.0,0.0004123,30]
[393926061,1763097392478,500.0,0.0004123,30]
[393926062,1763097392611,500.0,0.0004123,30]
[393926063,1763097392714,500.0,0.0004123,30]
[393926064,1763097392848,500.0,0.0004123,30]
[393926065,1763097392954,500.0,0.0004123,30]
[393926066,1763097393190,311.56398267,0.0004123,30]
[393926067,1763097393255,500.0,0.0004123,30]
[393926068,1763097393449,500.0,0.0004123,30]
[393926069,1763097393686,500.0,0.0004123,30]
[393926070,1763097393923,500.0,0.0004123,30]
[393926071,1763097394161,500.0,0.0004123,30]
[393926072,1763097394441,500.0,0.0004123,30]
[393926073,1763097394673,500.0,0.0004123,30]
[393926074,1763097394917,500.0,0.0004123,30]
[393926075,1763097395155,420.54777175,0.0004123,30]
[393926076,1763097396227,500.0,0.0004123,30]
[393926077,1763097396467,522.66,0.0004123,30]
[393926078,1763097401578,500.0,0.0004123,30]
[393926079,1763097401936,500.0,0.0004123,30]
[393926080,1763097402182,500.0,0.0004123,30]
[393926081,1763097402542,500.0,0.0004123,30]
[393926082,1763097402787,500.0,0.0004123,30]
[393926083,1763097403204,500.0,0.0004123,30]
[393926084,1763097403437,500.0,0.0004123,30]
[393926085,1763097403706,500.0,0.0004123,30]
[393926086,1763097403942,500.0,0.0004123,30]
[393926087,1763097404194,500.0,0.0004123,30]
[393926088,1763097404418,646.34,0.0004123,30]
[393926089,1763097405302,500.0,0.0004123,30]
[393926090,1763097405540,500.0,0.0004123,30]
[393926091,1763097405799,500.0,0.0004123,30]
[393926092,1763097406151,197.84,0.0004123,30]
[393926093,1763097407001,500.0,0.0004123,30]
[393926094,1763097407238,500.0,0.0004123,30]
[393926095,1763097407493,527.76,0.0004123,30]
[393926096,1763097407548,555.62849567,0.0004123,120]
[393926097,1763097410478,234.71750549,0.0004123,30]
[393926098,1763097413742,500.0,0.0004123,30]
[393926099,1763097414536,500.0,0.0004123,30]
[393926100,1763097414802,500.0,0.0004123,30]
[393926101,1763097415051,500.0,0.0004123,30]
[393926102,1763097415322,500.0,0.0004123,30]
[393926103,1763097422184,-500.0,0.00016885,2]
[393926104,1763097422207,-501.37804262,0.00016885,2]
[393926105,1763097422230,-500.0,0.00016885,2]
[393926106,1763097422255,-500.0,0.00016885,2]
[393926107,1763097422280,-396.65846791,0.00016885,2]
[393926108,1763097422308,-500.0,0.00016885,2]
[393926109,1763097422334,-500.0,0.00016885,2]
[393926110,1763097422364,-500.0,0.00016885,2]
[393926111,1763097422389,-500.0,0.00016885,2]
[393926112,1763097422414,-500.0,0.00016885,2]
[393926113,1763097422439,-500.0,0.00016885,2]
[393926114,1763097422464,-500.0,0.00016885,2]
[393926115,1763097422491,-400.0,0.00016885,2]
[393926116,1763097422519,-500.0,0.00016885,2]
[393926117,1763097422545,-500.0,0.00016885,2]
[393926118,1763097422572,-500.0,0.00016885,2]
[393926119,1763097422597,-500.0,0.00016885,2]
[393926120,1763097422621,-500.0,0.00016885,2]
[393926121,1763097422645,-500.0,0.00016885,2]
[393926122,1763097422669,-350.0,0.00016885,2]
[393926123,1763097422693,-500.0,0.00016885,2]
[393926124,1763097422717,-500.0,0.00016885,2]
[393926125,1763097422748,-500.0,0.00016885,2]
[393926126,1763097422778,-500.0,0.00016885,2]
[393926127,1763097422803,-500.0,0.00016885,2]
[393926128,1763097422827,-500.0,0.00016885,2]
[393926129,1763097422851,-500.0,0.00016885,2]
[393926131,1763097422879,-500.0,0.00016885,2]
[393926133,1763097422905,-500.0,0.00016885,2]
[393926135,1763097422933,-500.0,0.00016885,2]
[393926137,1763097422964,-500.0,0.00016885,2]
[393926139,1763097422991,-500.0,0.00016885,2]
[393926141,1763097423016,-500.0,0.00016885,2]
[393926143,1763097423048,-500.0,0.00016885,2]
[393926145,1763097423074,-500.0,0.00016885,2]
[393926147,1763097423101,-500.0,0.00016885,2]
[393926149,1763097423131,-313.5605974,0.00016885,2]
[393926150,1763097423159,-500.0,0.00016885,2]
[393926151,1763097423187,-500.0,0.00016885,2]
[393926152,1763097423214,-500.0,0.00016885,2]
[393926153,1763097423244,-500.0,0.00016885,2]
[393926154,1763097423272,-500.0,0.00016885,2]
[393926155,1763097423300,-500.0,0.00016885,2]
[393926156,1763097423335,-500.0,0.00016885,2]
[393926158,1763097423374,-500.0,0.00016885,2]
[393926159,1763097423404,-500.0,0.00016885,2]
[393926160,1763097423433,-500.0,0.00016885,2]
[393926161,1763097423463,-354833.86882366,0.00016886,2]
[393926162,1763097423491,-175.95547919,0.000169,2]
[393926163,1763097423516,-197.73708699,0.00017,2]
[393926164,1763097423541,-377.41660551,0.00017113,2]
[393926165,1763097423566,-1000.0,0.00017305,2]
[393926166,1763097423592,-300.0,0.00017313,2]
[393926167,1763097423625,-195.0,0.00017313,2]
[393926168,1763097423651,-2500.0,0.00017329,2]
[393926169,1763097423677,-500.0,0.00017501,2]
[393926170,1763097423704,-500.0,0.00017502,2]
[393926171,1763097423735,-500.0,0.00017502,2]
[393926172,1763097423759,-521.62533127,0.00017502,2]
[393926173,1763097423783,-500.0,0.00017573,2]
[393926174,1763097424007,-500.0,0.00017585,2]
[393926175,1763097424033,-9999.99,0.00017585,2]
[393926176,1763097424061,-2947.66,0.00017585,2]
[393926177,1763097424082,-9999.99,0.00017585,2]
[393926178,1763097424107,-26745.04,0.00017585,2]
[393926179,1763097424134,-5338.77,0.00017585,2]
[393926180,1763097424157,-9999.99,0.00017585,2]
[393926181,1763097424181,-8044.19,0.00017585,2]
[393926182,1763097424204,-999.99,0.00017585,2]
[393926183,1763097424227,-7367.32,0.00017585,2]
[393926184,1763097424248,-150.99,0.00017585,2]
[393926185,1763097424274,-3251.15,0.00017585,2]
[393926186,1763097424297,-150.0,0.00017739,2]
[393926187,1763097424322,-300.0,0.0001778,2]
[393926188,1763097424345,-300.0,0.0001778,2]
[393926189,1763097424369,-300.0,0.0001778,2]
[393926190,1763097424391,-151.0,0.00017896,2]
[393926191,1763097424417,-500.0,0.00017899,2]
[393926192,1763097424439,-151.0,0.00017916,2]
[393926193,1763097424461,-151.0,0.00017941,2]
[393926194,1763097424483,-151.0,0.00017967,2]
[393926195,1763097424505,-501.32609967,0.00017973,2]
[393926196,1763097424526,-500.0,0.00017999,2]
[393926197,1763097424548,-150.0,0.00018,2]
[393926198,1763097424570,-223.32399279,0.00018,2]
[393926199,1763097424593,-300.0,0.00018444,2]
[393926200,1763097424620,-300.0,0.00018575,2]
[393926201,1763097424642,-195.0,0.00018575,2]
[393926202,1763097424664,-250.0,0.00018575,2]
[393926203,1763097424687,-377.41660547,0.00019767,2]